[Event "Titled Tuesday Blitz August 15 Late 2023"]
[White "Santos Flores, Alberto"]
[Black "Arnold, Ken"]
[WhiteFideId "3601234"]
[BlackFideId "2056836"]
[WhiteElo "2516"]
[BlackElo "2418"]
[Result "1-0"]
[Round "11"]
[TimeControl "180+1"]
[Date "2023.08.15"]
[WhiteClock "0:00:03"]
[BlackClock "0:00:00"]
[Board "59"]

1. e4 {[%clk 0:03:00]}  c6 {[%clk 0:02:59]} 2. c4 {[%clk 0:03:00]}  d5 {[%clk 0:03:00]} 3. cxd5 {[%clk 0:03:01]}  cxd5 {[%clk 0:03:00]} 4. exd5 {[%clk 0:03:01]}  Qxd5 {[%clk 0:03:00]} 5. Nc3 {[%clk 0:03:00]}  Qd8 {[%clk 0:03:00]} 6. Nf3 {[%clk 0:02:57]}  Nf6 {[%clk 0:03:00]} 7. d4 {[%clk 0:02:57]}  e6 {[%clk 0:03:00]} 8. Bc4 {[%clk 0:02:52]}  Be7 {[%clk 0:03:00]} 9. O-O {[%clk 0:02:52]}  O-O {[%clk 0:03:00]} 10. Ne5 {[%clk 0:02:49]}  Nbd7 {[%clk 0:02:38]} 11. Qe2 {[%clk 0:02:44]}  Nxe5 {[%clk 0:02:34]} 12. dxe5 {[%clk 0:02:43]}  Nd7 {[%clk 0:02:34]} 13. Re1 {[%clk 0:02:24]}  a6 {[%clk 0:02:33]} 14. Bd3 {[%clk 0:02:24]}  Nc5 {[%clk 0:02:31]} 15. Bc2 {[%clk 0:02:23]}  a5 {[%clk 0:02:09]} 16. Qg4 {[%clk 0:02:09]}  g6 {[%clk 0:02:00]} 17. Bf4 {[%clk 0:02:07]}  Bd7 {[%clk 0:01:54]} 18. Re3 {[%clk 0:02:02]}  Bc6 {[%clk 0:01:33]} 19. Rh3 {[%clk 0:02:01]}  b5 {[%clk 0:01:01]} 20. Rd1 {[%clk 0:01:21]}  Nd7 {[%clk 0:00:32]} 21. Be4 {[%clk 0:01:14]}  Rc8 {[%clk 0:00:24]} 22. Bxc6 {[%clk 0:01:14]}  Rxc6 {[%clk 0:00:23]} 23. Ne4 {[%clk 0:01:14]}  Rc4 {[%clk 0:00:10]} 24. Qf3 {[%clk 0:00:34]}  Qa8 {[%clk 0:00:08]} 25. Rxd7 {[%clk 0:00:14]}  Qxe4 {[%clk 0:00:08]} 26. Qxe4 {[%clk 0:00:13]}  Rxe4 {[%clk 0:00:08]} 27. Be3 {[%clk 0:00:12]}  Re8 {[%clk 0:00:07]} 28. Kf1 {[%clk 0:00:10]}  Rxe5 {[%clk 0:00:07]} 29. Ke2 {[%clk 0:00:10]}  Bc5 {[%clk 0:00:06]} 30. Rb7 {[%clk 0:00:09]}  Bxe3 {[%clk 0:00:06]} 31. Rxe3 {[%clk 0:00:09]}  Rxe3+ {[%clk 0:00:05]} 32. Kxe3 {[%clk 0:00:10]}  b4 {[%clk 0:00:06]} 33. Rb5 {[%clk 0:00:09]}  Rc8 {[%clk 0:00:06]} 34. Kd3 {[%clk 0:00:07]}  Ra8 {[%clk 0:00:05]} 35. Kc4 {[%clk 0:00:06]}  Kg7 {[%clk 0:00:05]} 36. Rb7 {[%clk 0:00:05]}  Kf6 {[%clk 0:00:05]} 37. Kb5 {[%clk 0:00:05]}  e5 {[%clk 0:00:05]} 38. Ka4 {[%clk 0:00:02]}  Ke6 {[%clk 0:00:05]} 39. Rb5 {[%clk 0:00:02]}  f5 {[%clk 0:00:04]} 40. Rxa5 {[%clk 0:00:02]}  Rd8 {[%clk 0:00:02]} 41. Ra6+ {[%clk 0:00:02]}  Kd5 {[%clk 0:00:02]} 42. Kxb4 {[%clk 0:00:01]}  Rb8+ {[%clk 0:00:02]} 43. Kc3 {[%clk 0:00:02]}  Kc5 {[%clk 0:00:02]} 44. a3 {[%clk 0:00:02]}  e4 {[%clk 0:00:02]} 45. Re6 {[%clk 0:00:02]}  Rd8 {[%clk 0:00:02]} 46. b4+ {[%clk 0:00:02]}  Kb5 {[%clk 0:00:02]} 47. Re5+ {[%clk 0:00:02]}  Kb6 {[%clk 0:00:02]} 48. a4 {[%clk 0:00:03]}  Rd3+ {[%clk 0:00:02]} 49. Kc4 {[%clk 0:00:04]}  Rd2 {[%clk 0:00:02]} 50. Re6+ {[%clk 0:00:04]}  Kc7 {[%clk 0:00:02]} 51. a5 {[%clk 0:00:04]}  Rxf2 {[%clk 0:00:03]} 52. b5 {[%clk 0:00:05]}  Rc2+ {[%clk 0:00:02]} 53. Kb4 {[%clk 0:00:05]}  Rxg2 {[%clk 0:00:03]} 54. Re7+ {[%clk 0:00:04]}  Kd6 {[%clk 0:00:03]} 55. Re8 {[%clk 0:00:04]}  Kd7 {[%clk 0:00:02]} 56. Rh8 {[%clk 0:00:03]}  e3 {[%clk 0:00:02]} 57. Rxh7+ {[%clk 0:00:04]}  Kd6 {[%clk 0:00:02]} 58. Rh8 {[%clk 0:00:03]}  Rg4+ {[%clk 0:00:03]} 59. Kc3 {[%clk 0:00:03]}  Re4 {[%clk 0:00:02]} 60. Rd8+ {[%clk 0:00:03]}  Kc7 {[%clk 0:00:02]} 61. Rd1 {[%clk 0:00:04]}  Re5 {[%clk 0:00:01]} 62. b6+ {[%clk 0:00:03]}  Kb7 {[%clk 0:00:00]} 63. Kd4 {[%clk 0:00:03]} 1-0


[Site "https://www.chess.com"]

[Event "Titled Tuesday Blitz August 15 Late 2023"]
[White "Michalczak, Thomas"]
[Black "Topalov, Aleksandar"]
[WhiteFideId "4622634"]
[BlackFideId "925659"]
[WhiteElo "2498"]
[BlackElo "2388"]
[Result "0-1"]
[Round "11"]
[TimeControl "180+1"]
[Date "2023.08.15"]
[WhiteClock "0:00:43"]
[BlackClock "0:00:44"]
[Board "62"]

1. e4 {[%clk 0:03:00]}  e6 {[%clk 0:02:59]} 2. d4 {[%clk 0:03:00]}  d5 {[%clk 0:02:59]} 3. Nc3 {[%clk 0:03:01]}  Bb4 {[%clk 0:02:58]} 4. e5 {[%clk 0:03:01]}  Qd7 {[%clk 0:02:59]} 5. a3 {[%clk 0:03:01]}  Bxc3+ {[%clk 0:02:58]} 6. bxc3 {[%clk 0:03:02]}  b6 {[%clk 0:02:58]} 7. h4 {[%clk 0:03:02]}  Ba6 {[%clk 0:02:54]} 8. Bxa6 {[%clk 0:03:01]}  Nxa6 {[%clk 0:02:54]} 9. h5 {[%clk 0:03:02]}  h6 {[%clk 0:02:53]} 10. Qg4 {[%clk 0:03:02]}  f5 {[%clk 0:02:53]} 11. Qe2 {[%clk 0:02:53]}  Nb8 {[%clk 0:02:52]} 12. Nf3 {[%clk 0:02:52]}  Nc6 {[%clk 0:02:51]} 13. a4 {[%clk 0:02:52]}  Na5 {[%clk 0:02:50]} 14. Nh4 {[%clk 0:02:46]}  Ne7 {[%clk 0:02:50]} 15. g4 {[%clk 0:02:44]}  Rf8 {[%clk 0:02:42]} 16. g5 {[%clk 0:02:44]}  hxg5 {[%clk 0:02:41]} 17. Bxg5 {[%clk 0:02:45]}  O-O-O {[%clk 0:02:35]} 18. Bxe7 {[%clk 0:02:43]}  Qxe7 {[%clk 0:02:35]} 19. Ng6 {[%clk 0:02:44]}  Qf7 {[%clk 0:02:35]} 20. Nxf8 {[%clk 0:02:45]}  Rxf8 {[%clk 0:02:35]} 21. Rb1 {[%clk 0:02:41]}  Nc4 {[%clk 0:02:34]} 22. f4 {[%clk 0:02:29]}  Rh8 {[%clk 0:02:25]} 23. Rb4 {[%clk 0:02:27]}  Na5 {[%clk 0:02:09]} 24. Qa6+ {[%clk 0:02:24]}  Kd7 {[%clk 0:02:07]} 25. Qxa7 {[%clk 0:02:04]}  Rxh5 {[%clk 0:02:05]} 26. Rf1 {[%clk 0:02:05]}  Nc6 {[%clk 0:02:03]} 27. Qa6 {[%clk 0:01:57]}  Rh2 {[%clk 0:01:51]} 28. Rb2 {[%clk 0:01:42]}  Qh5 {[%clk 0:01:46]} 29. Qd3 {[%clk 0:01:30]}  Na5 {[%clk 0:01:35]} 30. Qf3 {[%clk 0:01:25]}  Qh4+ {[%clk 0:01:33]} 31. Rf2 {[%clk 0:01:15]}  Rh1+ {[%clk 0:01:16]} 32. Ke2 {[%clk 0:01:13]}  Nc4 {[%clk 0:01:16]} 33. Rb4 {[%clk 0:01:13]}  g5 {[%clk 0:01:10]} 34. Rxc4 {[%clk 0:01:08]}  g4 {[%clk 0:00:59]} 35. Rxc7+ {[%clk 0:01:06]}  Kxc7 {[%clk 0:01:00]} 36. Qg2 {[%clk 0:01:06]}  g3 {[%clk 0:00:54]} 37. c4 {[%clk 0:00:56]}  Rh2 {[%clk 0:00:45]} 38. cxd5 {[%clk 0:00:43]}  Rxg2 {[%clk 0:00:45]} 39. d6+ {[%clk 0:00:43]}  Kc6 {[%clk 0:00:44]} 40. Rxg2 {[%clk 0:00:43]}  Qxf4 {[%clk 0:00:44]} 41. c3 {[%clk 0:00:42]}  Qe4+ {[%clk 0:00:43]} 42. Kf1 {[%clk 0:00:42]}  Qf3+ {[%clk 0:00:43]} 43. Kg1 {[%clk 0:00:43]}  Qd1# {[%clk 0:00:44]} 0-1


[Site "https://www.chess.com"]

[Event "Titled Tuesday Blitz August 15 Late 2023"]
[White "Arutla, Aditya"]
[Black "ciroreva-CB"]
[WhiteFideId "30961998"]
[WhiteElo "2496"]
[BlackElo "2363"]
[Result "0-1"]
[Round "11"]
[TimeControl "180+1"]
[Date "2023.08.15"]
[WhiteClock "0:00:03"]
[BlackClock "0:00:06"]
[Board "64"]

1. d4 {[%clk 0:03:00]}  d6 {[%clk 0:02:58]} 2. e4 {[%clk 0:02:58]}  Nf6 {[%clk 0:02:58]} 3. Nc3 {[%clk 0:02:58]}  e5 {[%clk 0:02:59]} 4. dxe5 {[%clk 0:02:55]}  dxe5 {[%clk 0:02:58]} 5. Qxd8+ {[%clk 0:02:55]}  Kxd8 {[%clk 0:02:59]} 6. Bg5 {[%clk 0:02:54]}  Be6 {[%clk 0:02:57]} 7. Nf3 {[%clk 0:02:52]}  Nd7 {[%clk 0:02:57]} 8. O-O-O {[%clk 0:02:50]}  Kc8 {[%clk 0:02:56]} 9. Nd2 {[%clk 0:02:48]}  c6 {[%clk 0:02:36]} 10. Bc4 {[%clk 0:02:46]}  Bxc4 {[%clk 0:02:36]} 11. Nxc4 {[%clk 0:02:47]}  Kc7 {[%clk 0:02:36]} 12. a4 {[%clk 0:02:40]}  Bb4 {[%clk 0:02:30]} 13. f3 {[%clk 0:02:31]}  h6 {[%clk 0:02:16]} 14. Be3 {[%clk 0:02:26]}  Rhe8 {[%clk 0:02:10]} 15. Na2 {[%clk 0:02:23]}  Bc5 {[%clk 0:02:08]} 16. Bd2 {[%clk 0:02:17]}  b5 {[%clk 0:01:49]} 17. axb5 {[%clk 0:02:10]}  cxb5 {[%clk 0:01:49]} 18. Ba5+ {[%clk 0:02:07]}  Bb6 {[%clk 0:01:46]} 19. Bxb6+ {[%clk 0:01:42]}  axb6 {[%clk 0:01:35]} 20. Na3 {[%clk 0:01:42]}  Ra5 {[%clk 0:01:35]} 21. Nb4 {[%clk 0:01:39]}  Nb8 {[%clk 0:01:24]} 22. c3 {[%clk 0:01:36]}  Nc6 {[%clk 0:01:23]} 23. Nd5+ {[%clk 0:01:29]}  Nxd5 {[%clk 0:01:17]} 24. exd5 {[%clk 0:01:22]}  Nd8 {[%clk 0:01:10]} 25. Rhe1 {[%clk 0:01:21]}  Nb7 {[%clk 0:01:08]} 26. f4 {[%clk 0:01:15]}  f6 {[%clk 0:01:00]} 27. fxe5 {[%clk 0:01:14]}  fxe5 {[%clk 0:00:55]} 28. Re4 {[%clk 0:01:08]}  Nd6 {[%clk 0:00:53]} 29. Rg4 {[%clk 0:01:07]}  Re7 {[%clk 0:00:51]} 30. Kc2 {[%clk 0:01:05]}  Kd7 {[%clk 0:00:44]} 31. Rd3 {[%clk 0:01:02]}  Ra4 {[%clk 0:00:44]} 32. Rxa4 {[%clk 0:01:00]}  bxa4 {[%clk 0:00:43]} 33. Re3 {[%clk 0:00:57]}  e4 {[%clk 0:00:39]} 34. Nb1 {[%clk 0:00:52]}  Nc4 {[%clk 0:00:21]} 35. Re2 {[%clk 0:00:49]}  Kd6 {[%clk 0:00:21]} 36. Nd2 {[%clk 0:00:44]}  Nxd2 {[%clk 0:00:16]} 37. Rxd2 {[%clk 0:00:43]}  e3 {[%clk 0:00:16]} 38. Re2 {[%clk 0:00:42]}  Kxd5 {[%clk 0:00:16]} 39. Kd3 {[%clk 0:00:42]}  b5 {[%clk 0:00:15]} 40. h3 {[%clk 0:00:23]}  g5 {[%clk 0:00:14]} 41. g4 {[%clk 0:00:23]}  Re6 {[%clk 0:00:12]} 42. Re1 {[%clk 0:00:20]}  e2 {[%clk 0:00:11]} 43. Kd2 {[%clk 0:00:04]}  Kc4 {[%clk 0:00:11]} 44. Kc2 {[%clk 0:00:05]}  Re3 {[%clk 0:00:09]} 45. Kd2 {[%clk 0:00:05]}  Re7 {[%clk 0:00:06]} 46. Kc2 {[%clk 0:00:05]}  Re6 {[%clk 0:00:06]} 47. Kd2 {[%clk 0:00:04]}  Kb3 {[%clk 0:00:06]} 48. Kc1 {[%clk 0:00:03]}  Re5 {[%clk 0:00:05]} 49. Kb1 {[%clk 0:00:03]}  Rd5 {[%clk 0:00:04]} 50. Kc1 {[%clk 0:00:01]}  Rd1+ {[%clk 0:00:04]} 51. Rxd1 {[%clk 0:00:02]}  exd1=Q+ {[%clk 0:00:05]} 52. Kxd1 {[%clk 0:00:03]}  Kxb2 {[%clk 0:00:05]} 53. Kd2 {[%clk 0:00:03]}  a3 {[%clk 0:00:06]} 0-1


[Site "https://www.chess.com"]

[Event "Titled Tuesday Blitz August 15 Late 2023"]
[White "Martinez, Shawn"]
[Black "GaiozNigalidze"]
[WhiteFideId "2039770"]
[WhiteElo "2337"]
[BlackElo "2683"]
[Result "0-1"]
[Round "11"]
[TimeControl "180+1"]
[Date "2023.08.15"]
[WhiteClock "0:00:00"]
[BlackClock "0:00:14"]
[Board "67"]

1. e4 {[%clk 0:03:00]}  a6 {[%clk 0:02:53]} 2. d4 {[%clk 0:02:58]}  c6 {[%clk 0:02:53]} 3. Bd3 {[%clk 0:02:58]}  d5 {[%clk 0:02:53]} 4. e5 {[%clk 0:02:57]}  b5 {[%clk 0:02:53]} 5. c3 {[%clk 0:02:55]}  g6 {[%clk 0:02:53]} 6. h3 {[%clk 0:02:52]}  Bg7 {[%clk 0:02:53]} 7. Nf3 {[%clk 0:02:52]}  Nd7 {[%clk 0:02:51]} 8. O-O {[%clk 0:02:49]}  Nb6 {[%clk 0:02:51]} 9. Re1 {[%clk 0:02:43]}  e6 {[%clk 0:02:36]} 10. Nbd2 {[%clk 0:02:35]}  h6 {[%clk 0:02:36]} 11. Nb3 {[%clk 0:02:35]}  Ne7 {[%clk 0:02:35]} 12. Nc5 {[%clk 0:02:35]}  Nd7 {[%clk 0:02:35]} 13. b4 {[%clk 0:02:32]}  Nxc5 {[%clk 0:02:35]} 14. bxc5 {[%clk 0:02:32]}  Qc7 {[%clk 0:02:27]} 15. Bf4 {[%clk 0:02:30]}  g5 {[%clk 0:02:22]} 16. Bd2 {[%clk 0:02:25]}  Nf5 {[%clk 0:02:18]} 17. a4 {[%clk 0:02:21]}  Rb8 {[%clk 0:02:05]} 18. axb5 {[%clk 0:02:17]}  axb5 {[%clk 0:02:06]} 19. Qc1 {[%clk 0:02:06]}  Bd7 {[%clk 0:01:56]} 20. g4 {[%clk 0:01:52]}  Ne7 {[%clk 0:01:54]} 21. Kg2 {[%clk 0:01:45]}  Ng6 {[%clk 0:01:49]} 22. Qc2 {[%clk 0:01:41]}  Ne7 {[%clk 0:01:42]} 23. h4 {[%clk 0:01:31]}  gxh4 {[%clk 0:01:37]} 24. Rh1 {[%clk 0:01:31]}  h5 {[%clk 0:01:28]} 25. g5 {[%clk 0:01:26]}  Nf5 {[%clk 0:01:22]} 26. Nxh4 {[%clk 0:01:19]}  Ne7 {[%clk 0:01:02]} 27. Nf3 {[%clk 0:01:09]}  Kd8 {[%clk 0:00:58]} 28. c4 {[%clk 0:01:00]}  Ke8 {[%clk 0:00:52]} 29. cxb5 {[%clk 0:00:56]}  cxb5 {[%clk 0:00:51]} 30. Ba5 {[%clk 0:00:50]}  Qc8 {[%clk 0:00:49]} 31. Bb6 {[%clk 0:00:47]}  Nc6 {[%clk 0:00:34]} 32. Bxb5 {[%clk 0:00:41]}  Nxe5 {[%clk 0:00:34]} 33. Bxd7+ {[%clk 0:00:16]}  Nxd7 {[%clk 0:00:35]} 34. Ba7 {[%clk 0:00:10]}  Ra8 {[%clk 0:00:28]} 35. c6 {[%clk 0:00:10]}  Nf8 {[%clk 0:00:27]} 36. Rhb1 {[%clk 0:00:10]}  Ng6 {[%clk 0:00:26]} 37. c7 {[%clk 0:00:07]}  Kf8 {[%clk 0:00:17]} 38. Rb8 {[%clk 0:00:05]}  Ke7 {[%clk 0:00:15]} 39. Qc5+ {[%clk 0:00:04]}  Kd7 {[%clk 0:00:16]} 40. Qb5+ {[%clk 0:00:03]}  Kxc7 {[%clk 0:00:16]} 41. Rc1+ {[%clk 0:00:03]}  Kd6 {[%clk 0:00:16]} 42. Rcxc8 {[%clk 0:00:02]}  Rxc8 {[%clk 0:00:16]} 43. Rxc8 {[%clk 0:00:01]}  Rxc8 {[%clk 0:00:16]} 44. Bc5+ {[%clk 0:00:00]}  Kc7 {[%clk 0:00:14]} 0-1


[Site "https://www.chess.com"]

[Event "Titled Tuesday Blitz August 15 Late 2023"]
[White "Radivojevic, Ivan"]
[Black "Seletsky, Grigory"]
[WhiteFideId "928461"]
[BlackFideId "14112191"]
[WhiteElo "2427"]
[BlackElo "2483"]
[Result "1-0"]
[Round "11"]
[TimeControl "180+1"]
[Date "2023.08.15"]
[WhiteClock "0:00:16"]
[BlackClock "0:00:32"]
[Board "69"]

1. e4 {[%clk 0:03:00]}  c5 {[%clk 0:02:56]} 2. Nc3 {[%clk 0:03:00]}  e6 {[%clk 0:02:55]} 3. f4 {[%clk 0:02:58]}  a6 {[%clk 0:02:55]} 4. g3 {[%clk 0:02:58]}  b5 {[%clk 0:02:55]} 5. Bg2 {[%clk 0:02:58]}  Bb7 {[%clk 0:02:55]} 6. d3 {[%clk 0:02:58]}  d6 {[%clk 0:02:56]} 7. Nh3 {[%clk 0:02:58]}  Nd7 {[%clk 0:02:56]} 8. Nf2 {[%clk 0:02:58]}  g6 {[%clk 0:02:56]} 9. O-O {[%clk 0:02:58]}  Ne7 {[%clk 0:02:56]} 10. Be3 {[%clk 0:02:44]}  Bg7 {[%clk 0:02:56]} 11. Rb1 {[%clk 0:02:43]}  O-O {[%clk 0:02:55]} 12. Ne2 {[%clk 0:02:43]}  d5 {[%clk 0:02:52]} 13. c3 {[%clk 0:02:30]}  d4 {[%clk 0:02:51]} 14. cxd4 {[%clk 0:02:27]}  cxd4 {[%clk 0:02:49]} 15. Nxd4 {[%clk 0:02:19]}  e5 {[%clk 0:02:41]} 16. Nf3 {[%clk 0:02:10]}  Rc8 {[%clk 0:02:37]} 17. d4 {[%clk 0:01:59]}  exd4 {[%clk 0:02:36]} 18. Bxd4 {[%clk 0:01:54]}  Nc5 {[%clk 0:02:36]} 19. Bxg7 {[%clk 0:01:52]}  Kxg7 {[%clk 0:02:37]} 20. Qe2 {[%clk 0:01:49]}  Qb6 {[%clk 0:02:27]} 21. Kh1 {[%clk 0:01:42]}  b4 {[%clk 0:02:27]} 22. b3 {[%clk 0:01:41]}  a5 {[%clk 0:02:27]} 23. Rfd1 {[%clk 0:01:32]}  Rfd8 {[%clk 0:02:23]} 24. Qb2+ {[%clk 0:01:28]}  Kg8 {[%clk 0:02:22]} 25. Ne5 {[%clk 0:01:17]}  h5 {[%clk 0:02:12]} 26. Rbc1 {[%clk 0:01:12]}  Rxd1+ {[%clk 0:02:08]} 27. Rxd1 {[%clk 0:01:12]}  Rd8 {[%clk 0:02:09]} 28. Qc2 {[%clk 0:01:01]}  Rxd1+ {[%clk 0:02:05]} 29. Qxd1 {[%clk 0:01:02]}  Qc7 {[%clk 0:01:57]} 30. Qc2 {[%clk 0:00:55]}  Qd6 {[%clk 0:01:42]} 31. Nc4 {[%clk 0:00:54]}  Qd4 {[%clk 0:01:43]} 32. h3 {[%clk 0:00:53]}  a4 {[%clk 0:01:19]} 33. bxa4 {[%clk 0:00:53]}  Ba6 {[%clk 0:01:18]} 34. Ne5 {[%clk 0:00:46]}  h4 {[%clk 0:01:16]} 35. gxh4 {[%clk 0:00:43]}  Qe3 {[%clk 0:01:06]} 36. Neg4 {[%clk 0:00:38]}  Qd4 {[%clk 0:01:04]} 37. h5 {[%clk 0:00:34]}  gxh5 {[%clk 0:01:03]} 38. Nf6+ {[%clk 0:00:33]}  Qxf6 {[%clk 0:01:03]} 39. Qxc5 {[%clk 0:00:33]}  Qxf4 {[%clk 0:01:02]} 40. Qxe7 {[%clk 0:00:32]}  Qxf2 {[%clk 0:01:03]} 41. Qg5+ {[%clk 0:00:31]}  Kf8 {[%clk 0:01:01]} 42. Qh6+ {[%clk 0:00:31]}  Kg8 {[%clk 0:00:59]} 43. Qg5+ {[%clk 0:00:30]}  Kf8 {[%clk 0:00:58]} 44. Qh6+ {[%clk 0:00:29]}  Kg8 {[%clk 0:00:56]} 45. Qxa6 {[%clk 0:00:29]}  h4 {[%clk 0:00:52]} 46. Qc8+ {[%clk 0:00:28]}  Kg7 {[%clk 0:00:50]} 47. Qg4+ {[%clk 0:00:27]}  Kf8 {[%clk 0:00:50]} 48. e5 {[%clk 0:00:23]}  Qe1+ {[%clk 0:00:49]} 49. Kh2 {[%clk 0:00:23]}  Qxe5+ {[%clk 0:00:50]} 50. Kg1 {[%clk 0:00:23]}  Qe3+ {[%clk 0:00:48]} 51. Kf1 {[%clk 0:00:21]}  Qc1+ {[%clk 0:00:46]} 52. Ke2 {[%clk 0:00:20]}  Qc2+ {[%clk 0:00:45]} 53. Ke3 {[%clk 0:00:19]}  Qc3+ {[%clk 0:00:42]} 54. Kf2 {[%clk 0:00:18]}  Qd2+ {[%clk 0:00:41]} 55. Kf3 {[%clk 0:00:17]}  Qd3+ {[%clk 0:00:40]} 56. Kf4 {[%clk 0:00:18]}  Qd4+ {[%clk 0:00:40]} 57. Kg5 {[%clk 0:00:17]}  Qb2 {[%clk 0:00:37]} 58. Kxh4 {[%clk 0:00:17]}  f6 {[%clk 0:00:36]} 59. Bd5 {[%clk 0:00:14]}  Qf2+ {[%clk 0:00:36]} 60. Kh5 {[%clk 0:00:15]}  Qc5 {[%clk 0:00:34]} 61. Qg8+ {[%clk 0:00:13]}  Ke7 {[%clk 0:00:34]} 62. Qe6+ {[%clk 0:00:14]}  Kd8 {[%clk 0:00:34]} 63. Qxf6+ {[%clk 0:00:14]}  Kc7 {[%clk 0:00:34]} 64. Qc6+ {[%clk 0:00:14]}  Qxc6 {[%clk 0:00:34]} 65. Bxc6 {[%clk 0:00:15]}  Kxc6 {[%clk 0:00:34]} 66. Kg6 {[%clk 0:00:15]}  Kb6 {[%clk 0:00:35]} 67. h4 {[%clk 0:00:16]}  Ka5 {[%clk 0:00:36]} 68. h5 {[%clk 0:00:16]}  Kxa4 {[%clk 0:00:37]} 69. h6 {[%clk 0:00:17]}  Ka3 {[%clk 0:00:38]} 70. h7 {[%clk 0:00:17]}  Kxa2 {[%clk 0:00:39]} 71. h8=Q {[%clk 0:00:17]}  b3 {[%clk 0:00:39]} 72. Qa8+ {[%clk 0:00:17]}  Kb1 {[%clk 0:00:39]} 73. Qe4+ {[%clk 0:00:17]}  Ka1 {[%clk 0:00:36]} 74. Qa4+ {[%clk 0:00:16]}  Kb2 {[%clk 0:00:36]} 75. Kf5 {[%clk 0:00:16]}  Kc2 {[%clk 0:00:36]} 76. Qc4+ {[%clk 0:00:16]}  Kb2 {[%clk 0:00:36]} 77. Ke4 {[%clk 0:00:17]}  Ka3 {[%clk 0:00:37]} 78. Qa6+ {[%clk 0:00:17]}  Kb4 {[%clk 0:00:36]} 79. Qb6+ {[%clk 0:00:17]}  Kc3 {[%clk 0:00:37]} 80. Qc5+ {[%clk 0:00:18]}  Kd2 {[%clk 0:00:35]} 81. Qb4+ {[%clk 0:00:18]}  Kc2 {[%clk 0:00:35]} 82. Qc4+ {[%clk 0:00:18]}  Kb2 {[%clk 0:00:36]} 83. Kd3 {[%clk 0:00:19]}  Ka1 {[%clk 0:00:36]} 84. Qa4+ {[%clk 0:00:15]}  Kb2 {[%clk 0:00:34]} 85. Kd2 {[%clk 0:00:14]}  Kb1 {[%clk 0:00:34]} 86. Qxb3+ {[%clk 0:00:14]}  Ka1 {[%clk 0:00:34]} 87. Qb4 {[%clk 0:00:15]}  Ka2 {[%clk 0:00:32]} 88. Kc2 {[%clk 0:00:16]} 1-0


[Site "https://www.chess.com"]

[Event "Titled Tuesday Blitz August 15 Late 2023"]
[White "Bullen, Alex"]
[Black "Bueno, Alfeu Junior Varela"]
[WhiteFideId "1801627"]
[BlackFideId "2108879"]
[WhiteElo "2345"]
[BlackElo "2457"]
[Result "1/2-1/2"]
[Round "11"]
[TimeControl "180+1"]
[Date "2023.08.15"]
[WhiteClock "0:00:09"]
[BlackClock "0:01:14"]
[Board "71"]

1. d4 {[%clk 0:02:54]}  e6 {[%clk 0:03:00]} 2. Nf3 {[%clk 0:02:53]}  f5 {[%clk 0:03:00]} 3. Bf4 {[%clk 0:02:52]}  b6 {[%clk 0:03:01]} 4. c3 {[%clk 0:02:50]}  Bb7 {[%clk 0:03:01]} 5. e3 {[%clk 0:02:51]}  Nf6 {[%clk 0:03:02]} 6. Be2 {[%clk 0:02:50]}  Be7 {[%clk 0:03:03]} 7. h3 {[%clk 0:02:51]}  O-O {[%clk 0:03:03]} 8. Nbd2 {[%clk 0:02:51]}  d6 {[%clk 0:03:04]} 9. O-O {[%clk 0:02:52]}  Qe8 {[%clk 0:03:05]} 10. a4 {[%clk 0:02:49]}  a5 {[%clk 0:03:03]} 11. Bb5 {[%clk 0:02:47]}  Qg6 {[%clk 0:03:01]} 12. Qb3 {[%clk 0:02:45]}  Ne4 {[%clk 0:02:57]} 13. Nxe4 {[%clk 0:02:32]}  Bxe4 {[%clk 0:02:58]} 14. Be2 {[%clk 0:02:28]}  Nd7 {[%clk 0:02:57]} 15. Bg3 {[%clk 0:02:10]}  Kh8 {[%clk 0:02:56]} 16. Nd2 {[%clk 0:02:09]}  Nf6 {[%clk 0:02:46]} 17. Qxe6 {[%clk 0:02:04]}  Bd5 {[%clk 0:02:27]} 18. Qxe7 {[%clk 0:01:33]}  Rf7 {[%clk 0:02:27]} 19. Qxf7 {[%clk 0:01:20]}  Qxf7 {[%clk 0:02:28]} 20. Bf3 {[%clk 0:01:18]}  Bxf3 {[%clk 0:02:28]} 21. Nxf3 {[%clk 0:01:19]}  Ne4 {[%clk 0:02:27]} 22. Bf4 {[%clk 0:01:14]}  Qb3 {[%clk 0:02:19]} 23. Rfb1 {[%clk 0:01:06]}  h6 {[%clk 0:02:16]} 24. h4 {[%clk 0:00:49]}  Qc2 {[%clk 0:02:16]} 25. Bg3 {[%clk 0:00:42]}  Nxg3 {[%clk 0:02:16]} 26. fxg3 {[%clk 0:00:42]}  Qe2 {[%clk 0:02:14]} 27. Kh2 {[%clk 0:00:34]}  Re8 {[%clk 0:02:11]} 28. h5 {[%clk 0:00:18]}  Rxe3 {[%clk 0:02:06]} 29. Re1 {[%clk 0:00:17]}  Qd3 {[%clk 0:02:05]} 30. Rxe3 {[%clk 0:00:17]}  Qxe3 {[%clk 0:02:04]} 31. Re1 {[%clk 0:00:17]}  Qf2 {[%clk 0:02:03]} 32. Re8+ {[%clk 0:00:16]}  Kh7 {[%clk 0:02:02]} 33. Nh4 {[%clk 0:00:17]}  g6 {[%clk 0:01:15]} 34. hxg6+ {[%clk 0:00:18]}  Kg7 {[%clk 0:01:16]} 35. Re7+ {[%clk 0:00:17]}  Kg8 {[%clk 0:01:15]} 36. Re8+ {[%clk 0:00:14]}  Kg7 {[%clk 0:01:15]} 37. Re7+ {[%clk 0:00:13]}  Kg8 {[%clk 0:01:13]} 38. Re8+ {[%clk 0:00:09]}  Kg7 {[%clk 0:01:14]} 1/2-1/2


[Site "https://www.chess.com"]